Body,Body Name,Date,TransNo,Amount � (Excl VAT),Supplier name,Description,Expense Area,Expense Type,Expense Code,
http://opendatacommunities.org/id/london-borough-council/sutton,London Borough of Sutton,21/10/2020,1305385,29.00 , STK SHUTTERSTOCK,SHUTTERSTOCK,Peoples Services Directorate,Other Services,F340,
http://opendatacommunities.org/id/london-borough-council/sutton,London Borough of Sutton,21/10/2020,1305385,29.00 , STK SHUTTERSTOCK,SHUTTERSTOCK,Peoples Services Directorate,Other Services,F340,
http://opendatacommunities.org/id/london-borough-council/sutton,London Borough of Sutton,23/10/2020,1305385,8.32 , TWINKL LIMITED,TWINKL SUBSCRIPTION,Health and Wellbeing Directorate,Education Equipment,F009,
http://opendatacommunities.org/id/london-borough-council/sutton,London Borough of Sutton,19/10/2020,1305385,15.82 , AMAZON.CO.UK 681XM25F5,TOYS & EQUIPMENT,Health and Wellbeing Directorate,Education Equipment,F009,
http://opendatacommunities.org/id/london-borough-council/sutton,London Borough of Sutton,06/10/2020,1305385,186.86 , NEWITTS.COM,TOYS & EQUIPMENT,Health and Wellbeing Directorate,Education Equipment,F009,
http://opendatacommunities.org/id/london-borough-council/sutton,London Borough of Sutton,29/09/2020,1305385,88.02 , AMZNMKTPLACE,TOYS & EQUIPMENT,Health and Wellbeing Directorate,Education Equipment,F009,
http://opendatacommunities.org/id/london-borough-council/sutton,London Borough of Sutton,16/10/2020,1305385,5.42 , AMAZON.CO.UK 4T9T25U75,FIRST AID,Health and Wellbeing Directorate,First Aid and Medical Requisites,F105,
http://opendatacommunities.org/id/london-borough-council/sutton,London Borough of Sutton,12/10/2020,1305385,28.68 , ASDA SUPERSTORE,GROCERIES,Health and Wellbeing Directorate,Provisions - General,F150,
http://opendatacommunities.org/id/london-borough-council/sutton,London Borough of Sutton,05/10/2020,1305385,36.58 , ASDA SUPERSTORE,GROCERIES,Health and Wellbeing Directorate,Provisions - General,F150,
http://opendatacommunities.org/id/london-borough-council/sutton,London Borough of Sutton,28/09/2020,1305385,20.05 , SAINSBURYS 2006,GROCERIES,Health and Wellbeing Directorate,Provisions - General,F150,
http://opendatacommunities.org/id/london-borough-council/sutton,London Borough of Sutton,19/10/2020,1305385,25.81 , ASDA SUPERSTORE,GROCERIES,Health and Wellbeing Directorate,Refreshments,F155,
http://opendatacommunities.org/id/london-borough-council/sutton,London Borough of Sutton,08/10/2020,1305385,25.93 , ASDA STORES,GROCERIES,Health and Wellbeing Directorate,Refreshments,F155,
http://opendatacommunities.org/id/london-borough-council/sutton,London Borough of Sutton,09/10/2020,1305385,29.17 , WANDSWORTH COUNCIL,BIRTH CERTIFICATE,Peoples Services Directorate,Personal Requisites,F106,
http://opendatacommunities.org/id/london-borough-council/sutton,London Borough of Sutton,23/10/2020,1305385,66.00 , WWW.BOOKING.GLL.ORG,PERSONAL REQUEST TICKET FOR CONTACT,Peoples Services Directorate,Personal Requisites,F106,
http://opendatacommunities.org/id/london-borough-council/sutton,London Borough of Sutton,14/10/2020,1305385,123.95 , ARGOS LTD,PERSONAL REQUEST FOR ITEMS FOR ARGOS,Peoples Services Directorate,Personal Requisites,F106,
http://opendatacommunities.org/id/london-borough-council/sutton,London Borough of Sutton,01/09/2020,1305719,(19.72), AMZNMKTPLACE,FRAUDULENT TRANSACTION REFUND SEPT 2020 STATEMENT CE CARD,Peoples Services Directorate,Other Services,F340,
http://opendatacommunities.org/id/london-borough-council/sutton,London Borough of Sutton,09/10/2020,1305385,2.96 , PATISSERIE VALERIE,TREAT FOR EU,Peoples Services Directorate,Other Services,F340,
http://opendatacommunities.org/id/london-borough-council/sutton,London Borough of Sutton,08/10/2020,1305385,49.11 , ASDA GROCERIES ONLINE,WEEKLY FOOD SHOP,Peoples Services Directorate,Other Services,F340,
http://opendatacommunities.org/id/london-borough-council/sutton,London Borough of Sutton,07/10/2020,1305385,3.32 , PPOINT_ SPARKS FOOD &,BATTERIES,Peoples Services Directorate,Other Services,F340,
http://opendatacommunities.org/id/london-borough-council/sutton,London Borough of Sutton,06/10/2020,1305385,5.00 , ASDA STORES,HOUSEHOLD ITEM,Peoples Services Directorate,Other Services,F340,
http://opendatacommunities.org/id/london-borough-council/sutton,London Borough of Sutton,02/10/2020,1305385,4.99 , BUDGENS,FEMALE PERSONAL CARE,Peoples Services Directorate,Other Services,F340,
http://opendatacommunities.org/id/london-borough-council/sutton,London Borough of Sutton,02/10/2020,1305385,37.50 , ARGOS LTD,CURTAINS FOR THORNTON ROAD,Peoples Services Directorate,Other Services,F340,
http://opendatacommunities.org/id/london-borough-council/sutton,London Borough of Sutton,02/10/2020,1305385,5.75 , MELVYN CLARKE LTD,TAPE MEASURE,Peoples Services Directorate,Other Services,F340,
http://opendatacommunities.org/id/london-borough-council/sutton,London Borough of Sutton,16/10/2020,1305385,3.85 , BURGER KING,TAKEAWAY FOR EU,Peoples Services Directorate,Other Services,F340,
http://opendatacommunities.org/id/london-borough-council/sutton,London Borough of Sutton,16/10/2020,1305385,16.67 , ARGOS MERTON,HOUSEHOLD ITEMS,Peoples Services Directorate,Other Services,F340,
http://opendatacommunities.org/id/london-borough-council/sutton,London Borough of Sutton,16/10/2020,1305385,61.25 , IKEA LTD 144 CROYDON M,HOUSEHOLD ITEMS FOR THORNTON ROAD,Peoples Services Directorate,Other Services,F340,
http://opendatacommunities.org/id/london-borough-council/sutton,London Borough of Sutton,15/10/2020,1305385,21.90 , MEDISUPPLIES LTD,CONTROLLED DRUGS BOOK,Peoples Services Directorate,Other Services,F340,
http://opendatacommunities.org/id/london-borough-council/sutton,London Borough of Sutton,15/10/2020,1305385,54.78 , ASDA GROCERIES ONLINE,WEEKLY SHOP,Peoples Services Directorate,Other Services,F340,
http://opendatacommunities.org/id/london-borough-council/sutton,London Borough of Sutton,09/10/2020,1305385,4.57 , BUDGENS,PERSONAL CARE,Peoples Services Directorate,Other Services,F340,
http://opendatacommunities.org/id/london-borough-council/sutton,London Borough of Sutton,09/10/2020,1305385,3.29 , GREGGS,SNACK FOR EU,Peoples Services Directorate,Other Services,F340,
http://opendatacommunities.org/id/london-borough-council/sutton,London Borough of Sutton,24/10/2020,1305385,8.48 , UBER   PENDING,WEEKLY TAKEAWAY,Peoples Services Directorate,Other Services,F340,
http://opendatacommunities.org/id/london-borough-council/sutton,London Borough of Sutton,22/10/2020,1305385,74.02 , ASDA GROCERIES ONLINE,WEEKLY SHOP AND HOUSEHOLD ITEMS,Peoples Services Directorate,Other Services,F340,
http://opendatacommunities.org/id/london-borough-council/sutton,London Borough of Sutton,22/10/2020,1305385,3.29 , GREGGS PLC,EU LUNCH,Peoples Services Directorate,Other Services,F340,
http://opendatacommunities.org/id/london-borough-council/sutton,London Borough of Sutton,22/10/2020,1305385,21.25 , PRIMARK,BEDDING,Peoples Services Directorate,Other Services,F340,
http://opendatacommunities.org/id/london-borough-council/sutton,London Borough of Sutton,20/10/2020,1305385,4.07 , BUDGENS,PERSONAL CARE,Peoples Services Directorate,Other Services,F340,
http://opendatacommunities.org/id/london-borough-council/sutton,London Borough of Sutton,20/10/2020,1305385,(6.66), AMAZON PRIME,AMAZON PRIME REFUND,Peoples Services Directorate,Other Services,F340,
http://opendatacommunities.org/id/london-borough-council/sutton,London Borough of Sutton,19/10/2020,1305385,2.49 , BUDGENS,TOILET ROLL,Peoples Services Directorate,Other Services,F340,
http://opendatacommunities.org/id/london-borough-council/sutton,London Borough of Sutton,01/10/2020,1305385,73.18 , TESCO STORE 3235,WEEKLY SHOP AND HOUSEHOLD ITEMS,Peoples Services Directorate,Other Services,F340,
http://opendatacommunities.org/id/london-borough-council/sutton,London Borough of Sutton,29/09/2020,1305385,9.97 , ASDA SUPERSTORE,HOUSEHOLD ITEMS EU,Peoples Services Directorate,Other Services,F340,
http://opendatacommunities.org/id/london-borough-council/sutton,London Borough of Sutton,29/09/2020,1305385,10.70 , TENPIN LTD - 189,OUTING WITH EU,Peoples Services Directorate,Other Services,F340,
http://opendatacommunities.org/id/london-borough-council/sutton,London Borough of Sutton,19/10/2020,1305385,35.00 , LONDON AND BELCHER,FLOWERS FROM SUTTON COLLEGE COLLEAGUE DUE TO A FAMILY BEREAVEMENT,Peoples Services Directorate,Provisions - General,F150,
http://opendatacommunities.org/id/london-borough-council/sutton,London Borough of Sutton,05/10/2020,1305385,96.96 , DISPLAYSENSE.CO.UK,DISPLAY SENSE LOLLIPOP STANDS X 10 LN,Peoples Services Directorate,Advertising/Publicity (non Staff),F240,
http://opendatacommunities.org/id/london-borough-council/sutton,London Borough of Sutton,30/09/2020,1305385,499.99 , FACEBK TZTVFVA7A2,300920 FACEBOOK AD STILL PLACES 2021 499.99,Peoples Services Directorate,Advertising/Publicity (non Staff),F240,
http://opendatacommunities.org/id/london-borough-council/sutton,London Borough of Sutton,30/09/2020,1305385,109.24 , MAILCHIMP,300920 MAILCHIMP SUBS 109.24,Peoples Services Directorate,Advertising/Publicity (non Staff),F240,
http://opendatacommunities.org/id/london-borough-council/sutton,London Borough of Sutton,02/10/2020,1305385,88.50 , WWW.PAXTON.CO.UK,ENTRY SYSTEM SWIPE CARDS,Peoples Services Directorate,Other Premises Costs,D715,
http://opendatacommunities.org/id/london-borough-council/sutton,London Borough of Sutton,30/09/2020,1305385,8.67 , PJ HARVEY & CO LTD,KEY CUT FOR IRON GATE WTH,Peoples Services Directorate,General Maintenance,D500,
http://opendatacommunities.org/id/london-borough-council/sutton,London Borough of Sutton,02/10/2020,1305385,157.50 , TVLICENSING.CO.UK,TV LICENCE,Peoples Services Directorate,Miscellaneous Expenses,F620,
http://opendatacommunities.org/id/london-borough-council/sutton,London Borough of Sutton,06/10/2020,1305385,6.00 , WILKO RETAIL LIMITED,IGCSE SCIENCE - SS,Peoples Services Directorate,Stationery,F220,
http://opendatacommunities.org/id/london-borough-council/sutton,London Borough of Sutton,23/10/2020,1305385,17.90 , WM MORRISONS STORE,COOKERY INGREDIENTS,Peoples Services Directorate,Education Equipment,F009,
http://opendatacommunities.org/id/london-borough-council/sutton,London Borough of Sutton,23/10/2020,1305385,3.00 , POUNDLAND LTD 1211,COOKERY EQUIPMENT,Peoples Services Directorate,Education Equipment,F009,
http://opendatacommunities.org/id/london-borough-council/sutton,London Borough of Sutton,21/10/2020,1305385,7.39 , ASDA STORES,COOKERY INGREDIENTS,Peoples Services Directorate,Education Equipment,F009,
http://opendatacommunities.org/id/london-borough-council/sutton,London Borough of Sutton,14/10/2020,1305385,8.54 , ASDA STORES,COOKERY INGREDIENTS,Peoples Services Directorate,Education Equipment,F009,
http://opendatacommunities.org/id/london-borough-council/sutton,London Borough of Sutton,07/10/2020,1305385,7.53 , ASDA STORES,COOKERY INGREDIENTS,Peoples Services Directorate,Education Equipment,F009,
http://opendatacommunities.org/id/london-borough-council/sutton,London Borough of Sutton,30/09/2020,1305385,14.97 , SAINSBURYS SACAT 2006,COOKERY INGREDIENTS,Peoples Services Directorate,Education Equipment,F009,
http://opendatacommunities.org/id/london-borough-council/sutton,London Borough of Sutton,18/10/2020,1305385,101.30 , PRIMARK,KB,Peoples Services Directorate,Personal Requisites,F106,
http://opendatacommunities.org/id/london-borough-council/sutton,London Borough of Sutton,16/10/2020,1305385,20.44 , PPOINT_ BOTTLE & BASKE,DR GROCERIES,Peoples Services Directorate,Personal Requisites,F106,
http://opendatacommunities.org/id/london-borough-council/sutton,London Borough of Sutton,08/10/2020,1305385,5.29 , COX PIPPIN CAFE,RA ACTIVITY,Peoples Services Directorate,Personal Requisites,F106,
http://opendatacommunities.org/id/london-borough-council/sutton,London Borough of Sutton,08/10/2020,1305385,4.18 , MCDONALDS911,MA ACTIVITY,Peoples Services Directorate,Personal Requisites,F106,
http://opendatacommunities.org/id/london-borough-council/sutton,London Borough of Sutton,21/10/2020,1305385,15.50 , AMZNMKTPLACE,PERSONAL REQUEST FOR CLIENT (81.72%),Peoples Services Directorate,Personal Requisites,F106,
http://opendatacommunities.org/id/london-borough-council/sutton,London Borough of Sutton,21/10/2020,1305385,3.47 , AMZNMKTPLACE,PERSONAL REQUEST FOR CLIENT (18.28%),Peoples Services Directorate,Personal Requisites,F106,
http://opendatacommunities.org/id/london-borough-council/sutton,London Borough of Sutton,19/10/2020,1305385,9.99 , AMZNMKTPLACE,PERSONAL REQUEST FOR CENTRE (100%),Peoples Services Directorate,Personal Requisites,F106,
http://opendatacommunities.org/id/london-borough-council/sutton,London Borough of Sutton,19/10/2020,1305385,10.99 , AMZNMKTPLACE,PERSONAL REQUEST FOR CLIENT (100%),Peoples Services Directorate,Personal Requisites,F106,
http://opendatacommunities.org/id/london-borough-council/sutton,London Borough of Sutton,18/10/2020,1305385,16.48 , AMZNMKTPLACE,PERSONAL REQUEST FOR CENTRE (100%),Peoples Services Directorate,Personal Requisites,F106,
http://opendatacommunities.org/id/london-borough-council/sutton,London Borough of Sutton,04/10/2020,1305385,12.03 , AMZNMKTPLACE,PERSONAL REQUEST FOR HOME ITEMS (30.52%),Peoples Services Directorate,Personal Requisites,F106,
http://opendatacommunities.org/id/london-borough-council/sutton,London Borough of Sutton,02/10/2020,1305385,5.79 , AMZNMKTPLACE,PERSONAL REQUEST FOR HOME ITEMS (100%),Peoples Services Directorate,Personal Requisites,F106,
http://opendatacommunities.org/id/london-borough-council/sutton,London Borough of Sutton,02/10/2020,1305385,14.16 , AMZNMKTPLACE,PERSONAL REQUEST FOR CENTRE (100%),Peoples Services Directorate,Personal Requisites,F106,
http://opendatacommunities.org/id/london-borough-council/sutton,London Borough of Sutton,01/10/2020,1305385,50.94 , ROBERT DYAS HOLDNG LTD,PERSONAL ITEMS FROM ROBERT DYAS,Peoples Services Directorate,Personal Requisites,F106,
http://opendatacommunities.org/id/london-borough-council/sutton,London Borough of Sutton,01/10/2020,1305385,318.92 , ARGOS LTD,PERSONAL ITEMS FROM ARGOS,Peoples Services Directorate,Personal Requisites,F106,
http://opendatacommunities.org/id/london-borough-council/sutton,London Borough of Sutton,20/10/2020,1305385,6.42 , COSTA COFFEE 43036750,JD ACTIVITY,Peoples Services Directorate,Personal Requisites,F106,
http://opendatacommunities.org/id/london-borough-council/sutton,London Borough of Sutton,05/10/2020,1305385,6.93 , MCDONALDS 1311,MC ACTIVITY,Peoples Services Directorate,Personal Requisites,F106,
http://opendatacommunities.org/id/london-borough-council/sutton,London Borough of Sutton,02/10/2020,1305385,23.60 , IZ  GINGER FROG CATERI,RA ACTIVITY,Peoples Services Directorate,Personal Requisites,F106,
http://opendatacommunities.org/id/london-borough-council/sutton,London Borough of Sutton,02/10/2020,1305385,15.39 , PPOINT_ MICHAEL'S STOR,DR GROCERIES,Peoples Services Directorate,Personal Requisites,F106,
http://opendatacommunities.org/id/london-borough-council/sutton,London Borough of Sutton,01/10/2020,1305385,5.61 , MCDONALDS,MC ACT,Peoples Services Directorate,Personal Requisites,F106,
http://opendatacommunities.org/id/london-borough-council/sutton,London Borough of Sutton,09/10/2020,1305385,26.99 , WHSMITH.CO.UK,SOCIAL WORKER REQUEST FOR A BOOK,Peoples Services Directorate,Personal Requisites,F106,
http://opendatacommunities.org/id/london-borough-council/sutton,London Borough of Sutton,04/10/2020,1305385,15.99 , AMZNMKTPLACE,PERSONAL REQUEST FOR HOME ITEMS (33.8%),Peoples Services Directorate,Personal Requisites,F106,
http://opendatacommunities.org/id/london-borough-council/sutton,London Borough of Sutton,04/10/2020,1305385,14.07 , AMZNMKTPLACE,PERSONAL REQUEST FOR HOME ITEMS (35.68%),Peoples Services Directorate,Personal Requisites,F106,
http://opendatacommunities.org/id/london-borough-council/sutton,London Borough of Sutton,22/10/2020,1305385,(49.00), ASDA GEORGE COM LEEDS,REFUND SW SETTING UP,Peoples Services Directorate,Set Up Costs - Children Leaving Care,H336,
http://opendatacommunities.org/id/london-borough-council/sutton,London Borough of Sutton,21/10/2020,1305385,49.00 , ASDA GEORGE COM LEEDS,SW SET UP,Peoples Services Directorate,Set Up Costs - Children Leaving Care,H336,
http://opendatacommunities.org/id/london-borough-council/sutton,London Borough of Sutton,20/10/2020,1305385,541.50 , ARGOS LTD,JD SETTING UP,Peoples Services Directorate,Set Up Costs - Children Leaving Care,H336,
http://opendatacommunities.org/id/london-borough-council/sutton,London Borough of Sutton,20/10/2020,1305385,235.95 , ARGOS LTD,JD SET UP,Peoples Services Directorate,Set Up Costs - Children Leaving Care,H336,
http://opendatacommunities.org/id/london-borough-council/sutton,London Borough of Sutton,20/10/2020,1305385,188.99 , ARGOS LTD,JD SETTING UP,Peoples Services Directorate,Set Up Costs - Children Leaving Care,H336,
http://opendatacommunities.org/id/london-borough-council/sutton,London Borough of Sutton,19/10/2020,1305385,42.00 , ARGOS LTD,SW SETTING UP,Peoples Services Directorate,Set Up Costs - Children Leaving Care,H336,
http://opendatacommunities.org/id/london-borough-council/sutton,London Borough of Sutton,06/10/2020,1305385,157.50 , TVLICENSING.CO.UK,DR SET UP,Peoples Services Directorate,Set Up Costs - Children Leaving Care,H336,
http://opendatacommunities.org/id/london-borough-council/sutton,London Borough of Sutton,02/10/2020,1305385,402.92 , ARGOS LTD,KP SETTING UP,Peoples Services Directorate,Set Up Costs - Children Leaving Care,H336,
http://opendatacommunities.org/id/london-borough-council/sutton,London Borough of Sutton,02/10/2020,1305385,29.98 , WWW.TENPIN.CO.UK,PERSONAL BOWLING CONTACT,Peoples Services Directorate,Personal Requisites,F106,
http://opendatacommunities.org/id/london-borough-council/sutton,London Borough of Sutton,19/10/2020,1305385,46.67 , PAYPAL  PAYHERE LTD,UASC RUNNING CLUB,Peoples Services Directorate,Personal Requisites,F106,
http://opendatacommunities.org/id/london-borough-council/sutton,London Borough of Sutton,20/10/2020,1305385,202.95 , ARGOS LTD,PERSONAL REQUEST FOR ITEMS FOR ARGOS,Peoples Services Directorate,Personal Requisites,F106,
http://opendatacommunities.org/id/london-borough-council/sutton,London Borough of Sutton,22/10/2020,1305385,20.83 , OYSTER ONLINE,AUTO TOP UP,Peoples Services Directorate,Travelling and Subsistence Allowances,A530,
http://opendatacommunities.org/id/london-borough-council/sutton,London Borough of Sutton,23/10/2020,1305385,16.67 , OYSTER BUS AUTOLOAD,AUTO TOP UP,Peoples Services Directorate,Travelling and Subsistence Allowances,A530,
http://opendatacommunities.org/id/london-borough-council/sutton,London Borough of Sutton,22/10/2020,1305385,20.83 , OYSTER ONLINE,AUTO TOP UP,Peoples Services Directorate,Travelling and Subsistence Allowances,A530,
http://opendatacommunities.org/id/london-borough-council/sutton,London Borough of Sutton,22/10/2020,1305385,20.83 , OYSTER ONLINE,AUTO TOP UP,Peoples Services Directorate,Travelling and Subsistence Allowances,A530,
http://opendatacommunities.org/id/london-borough-council/sutton,London Borough of Sutton,22/10/2020,1305385,20.83 , OYSTER ONLINE,AUTO TOP UP,Peoples Services Directorate,Travelling and Subsistence Allowances,A530,
http://opendatacommunities.org/id/london-borough-council/sutton,London Borough of Sutton,20/10/2020,1305385,15.79 , AMAZON.CO.UK 2O4J90XU5,PERSONAL REQUEST FOR CLIENT (100%),Peoples Services Directorate,Books,F006,
http://opendatacommunities.org/id/london-borough-council/sutton,London Borough of Sutton,08/10/2020,1305385,4.17 , THE WORKS,WRAPPING PAPER,Peoples Services Directorate,Personal Requisites,F106,
http://opendatacommunities.org/id/london-borough-council/sutton,London Borough of Sutton,13/10/2020,1305385,1.50 , PUMPKINMOON.UK,PERSONAL TICKETS FOR CONTACT ACTIVITY,Peoples Services Directorate,Personal Requisites,F106,
http://opendatacommunities.org/id/london-borough-council/sutton,London Borough of Sutton,13/10/2020,1305385,3.00 , PUMPKINMOON.UK,PERSONAL TICKETS FOR CONTACT ACTIVITY,Peoples Services Directorate,Personal Requisites,F106,
http://opendatacommunities.org/id/london-borough-council/sutton,London Borough of Sutton,08/10/2020,1305385,29.50 , GRAVITY FITNESS MAIDST,PERSONAL CONTACT AT TENPIN,Peoples Services Directorate,Personal Requisites,F106,
http://opendatacommunities.org/id/london-borough-council/sutton,London Borough of Sutton,02/10/2020,1305385,61.80 , WWW.WIGHTLINK.CO.UK,TRAVEL FOR CONTACT,Peoples Services Directorate,C.C.A Travel & Subsistance,H212,
http://opendatacommunities.org/id/london-borough-council/sutton,London Borough of Sutton,06/10/2020,1305385,20.60 , WWW.WIGHTLINK.CO.UK,TRAVEL FOR CONTACT,Peoples Services Directorate,C.C.A Travel & Subsistance,H212,
http://opendatacommunities.org/id/london-borough-council/sutton,London Borough of Sutton,01/10/2020,1305385,37.17 , AMAZON.CO.UK KO1JA4A25,SPLIT - SOCIAL WORK THEORY CARDS - 3RD EDITION APRIL 2020 (40.3%),Peoples Services Directorate,Client Care/Assistance,H301,
http://opendatacommunities.org/id/london-borough-council/sutton,London Borough of Sutton,01/10/2020,1305385,17.43 , AMAZON.CO.UK KO1JA4A25,SPLIT - THE PRACTICE EDUCATOR'S HANDBOOK (POST-QUALIFYING SOCIAL WORK PRACTICE SERIES) (18.9%),Peoples Services Directorate,Client Care/Assistance,H301,
http://opendatacommunities.org/id/london-borough-council/sutton,London Borough of Sutton,01/10/2020,1305385,35.16 , AMAZON.CO.UK KO1JA4A25,SPLIT - REFLECTIVE PRACTICE CARDS: PROMPT CARDS FOR SOCIAL WORKERS (38.12%),Peoples Services Directorate,Client Care/Assistance,H301,
http://opendatacommunities.org/id/london-borough-council/sutton,London Borough of Sutton,01/10/2020,1305385,2.48 , AMAZON.CO.UK KO1JA4A25,BALANCING ENTRY AMOUNT (2.68%),Peoples Services Directorate,Client Care/Assistance,H301,
http://opendatacommunities.org/id/london-borough-council/sutton,London Borough of Sutton,17/10/2020,1305385,16.67 , OYSTER BUS AUTOLOAD,AUTO TOP UP,Peoples Services Directorate,Travelling and Subsistence Allowances,A530,
http://opendatacommunities.org/id/london-borough-council/sutton,London Borough of Sutton,30/09/2020,1305385,16.67 , OYSTER AUTO TOPUP,20.00 - A530 0312 9999 - 30.09.2020.PDF,Peoples Services Directorate,Travelling and Subsistence Allowances,A530,
http://opendatacommunities.org/id/london-borough-council/sutton,London Borough of Sutton,20/10/2020,1305385,27.50 , LBSUTTON,BIRTH CERTIFICATE,Peoples Services Directorate,Personal Requisites,F106,
http://opendatacommunities.org/id/london-borough-council/sutton,London Borough of Sutton,12/08/2020,1305385,(63.00), GEN REGISTER OFFICE,REFUND,Peoples Services Directorate,Personal Requisites,F106,
http://opendatacommunities.org/id/london-borough-council/sutton,London Borough of Sutton,09/10/2020,1305385,27.50 , LBSUTTON,BIRTH CERTIFICATE,Peoples Services Directorate,Personal Requisites,F106,
http://opendatacommunities.org/id/london-borough-council/sutton,London Borough of Sutton,09/10/2020,1305385,27.50 , LBSUTTON,BIRTH CERTIFICATE,Peoples Services Directorate,Personal Requisites,F106,
http://opendatacommunities.org/id/london-borough-council/sutton,London Borough of Sutton,09/10/2020,1305385,25.00 , GEN REGISTER OFFICE,SOCIAL WORKER REQUEST FOR A BIRTH CERTIFICATE,Peoples Services Directorate,Personal Requisites,F106,
http://opendatacommunities.org/id/london-borough-council/sutton,London Borough of Sutton,09/10/2020,1305385,33.00 , LBSUTTON,SOCIAL WORKER REQUEST FOR A BIRTH CERTIFICATE,Peoples Services Directorate,Personal Requisites,F106,
http://opendatacommunities.org/id/london-borough-council/sutton,London Borough of Sutton,20/10/2020,1305385,63.10 , THE WAVERLEY HOTEL BAN,ACCOMMODATION - BED AND BREAKFAST,Peoples Services Directorate,Accommodation - Bed and Breakfast,H202,
http://opendatacommunities.org/id/london-borough-council/sutton,London Borough of Sutton,30/09/2020,1305385,73.95 , WWW.PEELHOTELS.CO.UK,H202 - ACCOMMODATION - BED AND BREAKFAST,Peoples Services Directorate,Accommodation - Bed and Breakfast,H202,
http://opendatacommunities.org/id/london-borough-council/sutton,London Borough of Sutton,30/09/2020,1305385,(141.40), HOTEL ON BOOKING.COM,H202 - ACCOMMODATION - BED AND BREAKFAST,Peoples Services Directorate,Accommodation - Bed and Breakfast,H202,
http://opendatacommunities.org/id/london-borough-council/sutton,London Borough of Sutton,21/10/2020,1305385,104.97 , PREMIER INN,PREMIER INN,Peoples Services Directorate,Accommodation - Bed and Breakfast,H202,
http://opendatacommunities.org/id/london-borough-council/sutton,London Borough of Sutton,08/10/2020,1305385,69.25 , THE WAVERLEY HOTEL BAN,ACCOMMODATION - BED AND BREAKFAST,Peoples Services Directorate,Accommodation - Bed and Breakfast,H202,
http://opendatacommunities.org/id/london-borough-council/sutton,London Borough of Sutton,02/10/2020,1305385,16.67 , OYSTER BUS AUTOLOAD,AUTO TOP UP,Peoples Services Directorate,Travelling and Subsistence Allowances,A530,
http://opendatacommunities.org/id/london-borough-council/sutton,London Borough of Sutton,21/10/2020,1305385,96.56 , FACEBK YCHACX6AL2,SPLIT - FOSTERING SONS AND DAUGHTERS FACEBOOK ADDS (48.28%),Peoples Services Directorate,Fees - Other,F299,
http://opendatacommunities.org/id/london-borough-council/sutton,London Borough of Sutton,26/10/2020,1305385,129.45 , GOOGLE  ADS5058737870,FOSTERING GOOGLE ADDS,Peoples Services Directorate,Fees - Other,F299,
http://opendatacommunities.org/id/london-borough-council/sutton,London Borough of Sutton,21/10/2020,1305385,4.31 , ZOOM.US 888-799-9666,SUBSCRIPTIONS FOR ZOOM MEMBERSHIP,Peoples Services Directorate,Subscriptions - General,F450,
http://opendatacommunities.org/id/london-borough-council/sutton,London Borough of Sutton,01/10/2020,1305385,71.94 , ZOOM.GBP,SUBSCRIPTIONS,Peoples Services Directorate,Subscriptions - General,F450,
http://opendatacommunities.org/id/london-borough-council/sutton,London Borough of Sutton,24/10/2020,1305385,71.94 , ZOOM.GBP,SUBSCRIPTIONS FOR ZOOM MEMBERSHIP,Peoples Services Directorate,Subscriptions - General,F450,
http://opendatacommunities.org/id/london-borough-council/sutton,London Borough of Sutton,01/10/2020,1305385,71.94 , ZOOM.GBP,SUBSCRIPTIONS,Peoples Services Directorate,Subscriptions - General,F450,
http://opendatacommunities.org/id/london-borough-council/sutton,London Borough of Sutton,30/09/2020,1305385,14.39 , ZOOM.US 888-799-9666,SUBSCRIPTIONS,Peoples Services Directorate,Subscriptions - General,F450,
http://opendatacommunities.org/id/london-borough-council/sutton,London Borough of Sutton,22/10/2020,1305385,43.50 , ZOOM.US 888-799-9666,SUBSCRIPTIONS FOR ZOOM MEMBERSHIP,Peoples Services Directorate,Subscriptions - General,F450,
http://opendatacommunities.org/id/london-borough-council/sutton,London Borough of Sutton,21/10/2020,1305385,21.70 , TESCO STORES 5999,PERSONAL REQUEST FOR ITEMS FROM TESCO,Peoples Services Directorate,Personal Requisites,F106,
http://opendatacommunities.org/id/london-borough-council/sutton,London Borough of Sutton,19/10/2020,1305385,24.16 , AMZNMKTPLACE,PERSONAL REQUEST FOR CENTRE (74.37%),Peoples Services Directorate,Personal Requisites,F106,
http://opendatacommunities.org/id/london-borough-council/sutton,London Borough of Sutton,19/10/2020,1305385,9.99 , AMZNMKTPLACE,PERSONAL REQUEST FOR CENTRE (25.63%),Peoples Services Directorate,Personal Requisites,F106,
http://opendatacommunities.org/id/london-borough-council/sutton,London Borough of Sutton,16/10/2020,1305385,11.20 , AMZNMKTPLACE,PERSONAL REQUEST FOR CENTRE (100%),Peoples Services Directorate,Personal Requisites,F106,
http://opendatacommunities.org/id/london-borough-council/sutton,London Borough of Sutton,16/10/2020,1305385,16.67 , OYSTER BUS AUTOLOAD,AUTO TOP UP,Peoples Services Directorate,Travelling and Subsistence Allowances,A530,
http://opendatacommunities.org/id/london-borough-council/sutton,London Borough of Sutton,15/10/2020,1305385,16.67 , OYSTER BUS AUTOLOAD,AUTO TOP UP,Peoples Services Directorate,Travelling and Subsistence Allowances,A530,
http://opendatacommunities.org/id/london-borough-council/sutton,London Borough of Sutton,22/10/2020,1305385,16.67 , OYSTER BUS AUTOLOAD,AUTO TOP UP,Peoples Services Directorate,Travelling and Subsistence Allowances,A530,
http://opendatacommunities.org/id/london-borough-council/sutton,London Borough of Sutton,07/10/2020,1305385,16.67 , OYSTER BUS AUTOLOAD,AUTO TOP UP,Peoples Services Directorate,Travelling and Subsistence Allowances,A530,
http://opendatacommunities.org/id/london-borough-council/sutton,London Borough of Sutton,21/10/2020,1305385,175.50 , WWW.HEALTHCARECONFEREN,LIBERTY PROTECTION SAFEGUARDS: MANAGING THE INTERIM,Peoples Services Directorate,Training - Course Fees,A520,
http://opendatacommunities.org/id/london-borough-council/sutton,London Borough of Sutton,07/10/2020,1305385,18.00 , MA EDUCATION LTD,SOCIAL WORKER WEBINAR,Peoples Services Directorate,Training - Course Fees,A520,
http://opendatacommunities.org/id/london-borough-council/sutton,London Borough of Sutton,07/10/2020,1305385,18.00 , MA EDUCATION LTD,SOCIAL WORKER WEBINAR,Peoples Services Directorate,Training - Course Fees,A520,
http://opendatacommunities.org/id/london-borough-council/sutton,London Borough of Sutton,07/10/2020,1305385,18.00 , MA EDUCATION LTD,SOCIAL WORKER WEBINAR,Peoples Services Directorate,Training - Course Fees,A520,
http://opendatacommunities.org/id/london-borough-council/sutton,London Borough of Sutton,13/10/2020,1305385,11.99 , ZOOM.GBP,CHILDREN IN CARE COUNCIL ZOOM SUBSCRIPTION,Peoples Services Directorate,LAC - Education,F269,
http://opendatacommunities.org/id/london-borough-council/sutton,London Borough of Sutton,21/10/2020,1305385,20.83 , PAYPAL  STANDREWSHE,ST ANDREW'S HEALTHCARE,Peoples Services Directorate,Training - Course Fees,A520,
http://opendatacommunities.org/id/london-borough-council/sutton,London Borough of Sutton,06/10/2020,1305385,13.67 , EB  DISRUPTING EXPLOIT,EVENTBRITE WEBINAR TICKET FOR : DISRUPTING EXPLOITATION WEBINAR,Peoples Services Directorate,Training - Course Fees,A520,
http://opendatacommunities.org/id/london-borough-council/sutton,London Borough of Sutton,18/10/2020,1305385,33.32 , AMZNMKTPLACE AMAZON.CO,PERSONAL REQUEST FOR HOME ITEMS (100%),Peoples Services Directorate,Personal Requisites,F106,
http://opendatacommunities.org/id/london-borough-council/sutton,London Borough of Sutton,15/10/2020,1305385,209.00 , WWW.DIVANCENTRE.CO.UK,PERSONAL REQUEST FOR ITEMS FOR DIVANCENTRE,Peoples Services Directorate,Personal Requisites,F106,
http://opendatacommunities.org/id/london-borough-council/sutton,London Borough of Sutton,11/10/2020,1305385,16.67 , OYSTER BUS AUTOLOAD,AUTO TOP UP,Peoples Services Directorate,Travelling and Subsistence Allowances,A530,
http://opendatacommunities.org/id/london-borough-council/sutton,London Borough of Sutton,10/10/2020,1305385,16.67 , OYSTER BUS AUTOLOAD,AUTO TOP UP,Peoples Services Directorate,Travelling and Subsistence Allowances,A530,
http://opendatacommunities.org/id/london-borough-council/sutton,London Borough of Sutton,23/10/2020,1305385,16.67 , AUTO TOP-UP ARREARS,AUTO TOP UP,Peoples Services Directorate,Travelling and Subsistence Allowances,A530,
http://opendatacommunities.org/id/london-borough-council/sutton,London Borough of Sutton,13/10/2020,1305385,16.67 , AUTO TOP-UP ARREARS,AUTO TOP UP,Peoples Services Directorate,Travelling and Subsistence Allowances,A530,
http://opendatacommunities.org/id/london-borough-council/sutton,London Borough of Sutton,11/10/2020,1305385,2.23 , AMAZON.CO.UK 435A46I95,SPLIT - TIMES TABLES WORKBOOK AGES 5-7: IDEAL FOR HOME LEARNING (COLLINS EASY LEARNING KS1) (10.02%),Peoples Services Directorate,LAC - Education,F269,
http://opendatacommunities.org/id/london-borough-council/sutton,London Borough of Sutton,11/10/2020,1305385,3.03 , AMAZON.CO.UK 435A46I95,SPLIT - TELLING THE TIME AGES 5-7: IDEAL FOR HOME LEARNING (COLLINS EASY LEARNING KS1) (12.98%),Peoples Services Directorate,LAC - Education,F269,
http://opendatacommunities.org/id/london-borough-council/sutton,London Borough of Sutton,11/10/2020,1305385,7.45 , AMAZON.CO.UK 435A46I95,SPLIT - ENGLISH FOR EVERYONE PRACTICE BOOK LEVEL 1 BEGINNER: A COMPLETE SELF-STUDY PROGRAMME (33.49%),Peoples Services Directorate,LAC - Education,F269,
http://opendatacommunities.org/id/london-borough-council/sutton,London Borough of Sutton,11/10/2020,1305385,3.03 , AMAZON.CO.UK 435A46I95,SPLIT - ADDITION AND SUBTRACTION AGES 5-7: PREPARE FOR SCHOOL WITH EASY HOME LEARNING (COLLINS EASY LEARNING KS1) (12.98%),Peoples Services Directorate,LAC - Education,F269,
http://opendatacommunities.org/id/london-borough-council/sutton,London Borough of Sutton,08/10/2020,1305385,23.39 , AMAZON.CO.UK DJ2YU78Y5,SPLIT - AQA GCSE 9-1 SOCIOLOGY STUDENT BOOK (AQA GCSE (9-1) SOCIOLOGY) (38.98%),Peoples Services Directorate,LAC - Education,F269,
http://opendatacommunities.org/id/london-borough-council/sutton,London Borough of Sutton,01/10/2020,1305385,4.95 , AMAZON.CO.UK 3O2I27UC5,SPLIT - GCSE MATHS AQA WORKBOOK: FOUNDATION - FOR THE GRADE 9-1 COURSE (CGP GCSE MATHS 9-1 REVISION) (62.34%),Peoples Services Directorate,LAC - Education,F269,
http://opendatacommunities.org/id/london-borough-council/sutton,London Borough of Sutton,01/10/2020,1305385,2.99 , AMAZON.CO.UK 3O2I27UC5,BALANCING ENTRY AMOUNT (37.66%),Peoples Services Directorate,LAC - Education,F269,
http://opendatacommunities.org/id/london-borough-council/sutton,London Borough of Sutton,30/09/2020,1305385,29.99 , AMAZON.CO.UK Y98H27K35,SPLIT - THE CITY & GUILDS TEXTBOOK: PAINTING AND DECORATING FOR LEVEL 1 AND LEVEL 2 (90.93%),Peoples Services Directorate,LAC - Education,F269,
http://opendatacommunities.org/id/london-borough-council/sutton,London Borough of Sutton,30/09/2020,1305385,2.99 , AMAZON.CO.UK Y98H27K35,BALANCING ENTRY AMOUNT (9.07%),Peoples Services Directorate,LAC - Education,F269,
http://opendatacommunities.org/id/london-borough-council/sutton,London Borough of Sutton,30/09/2020,1305385,11.00 , ROYAL MAIL GROUP LTD,POSTING LAPTOP TO SCHOOL,Peoples Services Directorate,LAC - Education,F269,
http://opendatacommunities.org/id/london-borough-council/sutton,London Borough of Sutton,18/10/2020,1305385,10.29 , AMAZON.CO.UK 2E81654K5,SPLIT - BLACK HEROES: A BLACK HISTORY BOOK FOR KIDS: 51 INSPIRING PEOPLE FROM ANCIENT AFRICA TO MODERN-DAY U.S.A. (65.37%),Peoples Services Directorate,LAC - Education,F269,
http://opendatacommunities.org/id/london-borough-council/sutton,London Borough of Sutton,16/10/2020,1305385,4.37 , AMZNMKTPLACE,SPLIT - OXFORD SCHOOL SHAKESPEARE: ROMEO AND JULIET (59.37%),Peoples Services Directorate,LAC - Education,F269,
http://opendatacommunities.org/id/london-borough-council/sutton,London Borough of Sutton,16/10/2020,1305385,2.99 , AMZNMKTPLACE,BALANCING ENTRY AMOUNT (40.63%),Peoples Services Directorate,LAC - Education,F269,
http://opendatacommunities.org/id/london-borough-council/sutton,London Borough of Sutton,16/10/2020,1305385,5.44 , AMZNMKTPLACE AMAZON.CO,SPLIT - LONGMAN WORDWISE DICTIONARY (66.02%),Peoples Services Directorate,LAC - Education,F269,
http://opendatacommunities.org/id/london-borough-council/sutton,London Borough of Sutton,16/10/2020,1305385,2.80 , AMZNMKTPLACE AMAZON.CO,BALANCING ENTRY AMOUNT (33.98%),Peoples Services Directorate,LAC - Education,F269,
http://opendatacommunities.org/id/london-borough-council/sutton,London Borough of Sutton,15/10/2020,1305385,9.51 , AMAZON.CO.UK CX6K44T65,SPLIT - KS3 SCIENCE COMPLETE REVISION AND PRACTICE - HIGHER (WITH ONLINE EDITION) (CGP KS3 SCIENCE) (50.86%),Peoples Services Directorate,LAC - Education,F269,
http://opendatacommunities.org/id/london-borough-council/sutton,London Borough of Sutton,15/10/2020,1305385,8.51 , AMAZON.CO.UK CX6K44T65,SPLIT - KS3 SCIENCE REVISION QUESTION CARDS (CGP KS3 SCIENCE) (49.14%),Peoples Services Directorate,LAC - Education,F269,
http://opendatacommunities.org/id/london-borough-council/sutton,London Borough of Sutton,11/10/2020,1305385,1.94 , AMAZON.CO.UK 435A46I95,SPLIT - SPELLING AGES 5-6: IDEAL FOR HOME LEARNING (COLLINS EASY LEARNING KS1) (8.74%),Peoples Services Directorate,LAC - Education,F269,
http://opendatacommunities.org/id/london-borough-council/sutton,London Borough of Sutton,11/10/2020,1305385,2.62 , AMAZON.CO.UK 435A46I95,BALANCING ENTRY AMOUNT (11.78%),Peoples Services Directorate,LAC - Education,F269,
http://opendatacommunities.org/id/london-borough-council/sutton,London Borough of Sutton,02/10/2020,1305385,4.49 , AMAZON.CO.UK 364VK7KQ5,BALANCING ENTRY AMOUNT (28.2%),Peoples Services Directorate,LAC - Education,F269,
http://opendatacommunities.org/id/london-borough-council/sutton,London Borough of Sutton,01/10/2020,1305385,5.85 , AMAZON.CO.UK B849R0N85,SPLIT - CIRQUE DU FREAK (THE SAGA OF DARREN SHAN BOOK 1) (85.53%),Peoples Services Directorate,LAC - Education,F269,
http://opendatacommunities.org/id/london-borough-council/sutton,London Borough of Sutton,01/10/2020,1305385,0.99 , AMAZON.CO.UK B849R0N85,BALANCING ENTRY AMOUNT (14.47%),Peoples Services Directorate,LAC - Education,F269,
http://opendatacommunities.org/id/london-borough-council/sutton,London Borough of Sutton,01/10/2020,1305385,11.00 , ROYAL MAIL GROUP LTD,POSTING LAPTOP TO SCHOOL,Peoples Services Directorate,LAC - Education,F269,
http://opendatacommunities.org/id/london-borough-council/sutton,London Borough of Sutton,18/10/2020,1305385,2.50 , AMAZON.CO.UK XG9FD31B5,SPLIT - A CHRISTMAS CAROL (WORDSWORTH CLASSICS) (71.63%),Peoples Services Directorate,LAC - Education,F269,
http://opendatacommunities.org/id/london-borough-council/sutton,London Borough of Sutton,18/10/2020,1305385,0.99 , AMAZON.CO.UK XG9FD31B5,BALANCING ENTRY AMOUNT (28.37%),Peoples Services Directorate,LAC - Education,F269,
http://opendatacommunities.org/id/london-borough-council/sutton,London Borough of Sutton,18/10/2020,1305385,4.95 , AMAZON.CO.UK 8D1E46GG5,SPLIT - MACBETH: EDEXCEL GCSE 9-1 ENGLISH LITERATURE TEXT GUIDE: FOR THE 2020 AUTUMN & 2021 SUMMER EXAMS (COLLINS GCSE GRADE 9-1 SNAP REVISION) (33.33%),Peoples Services Directorate,LAC - Education,F269,
http://opendatacommunities.org/id/london-borough-council/sutton,London Borough of Sutton,18/10/2020,1305385,4.95 , AMAZON.CO.UK 8D1E46GG5,SPLIT - A CHRISTMAS CAROL: EDEXCEL GCSE 9-1 ENGLISH LITERATURE TEXT GUIDE: FOR THE 2020 AUTUMN & 2021 SUMMER EXAMS (COLLINS GCSE GRADE 9-1 SNAP REVISION) (33.33%),Peoples Services Directorate,LAC - Education,F269,
http://opendatacommunities.org/id/london-borough-council/sutton,London Borough of Sutton,18/10/2020,1305385,4.95 , AMAZON.CO.UK 8D1E46GG5,SPLIT - AN INSPECTOR CALLS: EDEXCEL GCSE 9-1 ENGLISH LITERATURE TEXT GUIDE: FOR THE 2020 AUTUMN & 2021 SUMMER EXAMS (COLLINS GCSE GRADE 9-1 SNAP REVISION) (33.34%),Peoples Services Directorate,LAC - Education,F269,
http://opendatacommunities.org/id/london-borough-council/sutton,London Borough of Sutton,19/10/2020,1305385,5.55 , AMAZON.CO.UK XZ77A7CM5,SPLIT - REVISE EDEXCEL GCSE (9-1) SPANISH REVISION GUIDE: INCLUDES ONLINE EDITION (REVISE EDEXCEL GCSE MODERN LANGUAGES 16) (7.43%),Peoples Services Directorate,LAC - Education,F269,
http://opendatacommunities.org/id/london-borough-council/sutton,London Borough of Sutton,19/10/2020,1305385,5.93 , AMAZON.CO.UK XZ77A7CM5,SPLIT - OXFORD SCHOOL SHAKESPEARE: MACBETH (7.36%),Peoples Services Directorate,LAC - Education,F269,
http://opendatacommunities.org/id/london-borough-council/sutton,London Borough of Sutton,19/10/2020,1305385,9.06 , AMAZON.CO.UK XZ77A7CM5,SPLIT - REVISE AQA GCSE COMBINED SCIENCE: TRILOGY HIGHER REVISION GUIDE: (WITH FREE ONLINE EDITION) (REVISE AQA GCSE SCIENCE 16) (12.15%),Peoples Services Directorate,LAC - Education,F269,
http://opendatacommunities.org/id/london-borough-council/sutton,London Borough of Sutton,19/10/2020,1305385,5.77 , AMAZON.CO.UK XZ77A7CM5,SPLIT - GRADE 9-1 GCSE ENGLISH SHAKESPEARE TEXT GUIDE - MACBETH (CGP GCSE ENGLISH 9-1 REVISION) (7.16%),Peoples Services Directorate,LAC - Education,F269,
http://opendatacommunities.org/id/london-borough-council/sutton,London Borough of Sutton,19/10/2020,1305385,9.99 , AMAZON.CO.UK XZ77A7CM5,SPLIT - REVISE AQA GCSE COMBINED SCIENCE: TRILOGY HIGHER REVISION WORKBOOK: FOR THE 9-1 EXAMS (REVISE AQA GCSE SCIENCE 16) (12.4%),Peoples Services Directorate,LAC - Education,F269,
http://opendatacommunities.org/id/london-borough-council/sutton,London Borough of Sutton,07/10/2020,1305385,11.00 , ROYAL MAIL GROUP LTD,POSTING LAPTOP TO SCHOOL,Peoples Services Directorate,LAC - Education,F269,
http://opendatacommunities.org/id/london-borough-council/sutton,London Borough of Sutton,02/10/2020,1305385,11.43 , AMAZON.CO.UK 364VK7KQ5,SPLIT - TRIPLAST 16 X 21-INCH PLASTIC MAILING POSTAL BAG - GREY (PACK OF 100) (71.8%),Peoples Services Directorate,LAC - Education,F269,
http://opendatacommunities.org/id/london-borough-council/sutton,London Borough of Sutton,21/10/2020,1305385,10.75 , AMAZON.CO.UK 1B5VK2HQ5,SPLIT - CONSTRUCTION HEALTH & SAFETY AWARENESS 2020: GE707/20 (48.12%),Peoples Services Directorate,LAC - Education,F269,
http://opendatacommunities.org/id/london-borough-council/sutton,London Borough of Sutton,21/10/2020,1305385,11.59 , AMAZON.CO.UK 1B5VK2HQ5,SPLIT - THE OFFICIAL DVSA THEORY TEST FOR CAR DRIVERS (DRIVING SKILLS) (51.88%),Peoples Services Directorate,LAC - Education,F269,
http://opendatacommunities.org/id/london-borough-council/sutton,London Borough of Sutton,21/10/2020,1305385,5.89 , AMZNMKTPLACE,SPLIT - ALIENS LOVE UNDERPANTS! (18.48%),Peoples Services Directorate,LAC - Education,F269,
http://opendatacommunities.org/id/london-borough-council/sutton,London Borough of Sutton,21/10/2020,1305385,18.32 , AMZNMKTPLACE,"SPLIT - &#X3010;2 BOARDS&#X3011;HAUTTON ABC MAGNETIC LETTERS SET, 238 PCS MOVABLE FOAM ALPHABET NUMBERS, 3 PENS, AND ERASER, EDUCATIONAL ALPHABET MAGNETS KIT FOR KIDS SPELLING LEARNING (68.98%)",Peoples Services Directorate,LAC - Education,F269,
http://opendatacommunities.org/id/london-borough-council/sutton,London Borough of Sutton,21/10/2020,1305385,4.00 , AMZNMKTPLACE,SPLIT - GIRAFFES CAN'T DANCE (12.54%),Peoples Services Directorate,LAC - Education,F269,
http://opendatacommunities.org/id/london-borough-council/sutton,London Borough of Sutton,19/10/2020,1305385,5.77 , AMAZON.CO.UK XZ77A7CM5,SPLIT - GRADE 9-1 GCSE ENGLISH TEXT GUIDE - AN INSPECTOR CALLS (CGP GCSE ENGLISH 9-1 REVISION) (7.16%),Peoples Services Directorate,LAC - Education,F269,
http://opendatacommunities.org/id/london-borough-council/sutton,London Borough of Sutton,19/10/2020,1305385,9.85 , AMAZON.CO.UK XZ77A7CM5,SPLIT - AN INSPECTOR CALLS (HEINEMANN PLAYS FOR 14-16+) (12.22%),Peoples Services Directorate,LAC - Education,F269,
http://opendatacommunities.org/id/london-borough-council/sutton,London Borough of Sutton,19/10/2020,1305385,21.73 , AMAZON.CO.UK XZ77A7CM5,SPLIT - VIVA! EDEXCEL GCSE SPANISH HIGHER STUDENT BOOK (26.96%),Peoples Services Directorate,LAC - Education,F269,
http://opendatacommunities.org/id/london-borough-council/sutton,London Borough of Sutton,19/10/2020,1305385,5.77 , AMAZON.CO.UK XZ77A7CM5,SPLIT - GRADE 9-1 GCSE ENGLISH TEXT GUIDE - A CHRISTMAS CAROL (CGP GCSE ENGLISH 9-1 REVISION) (7.16%),Peoples Services Directorate,LAC - Education,F269,
http://opendatacommunities.org/id/london-borough-council/sutton,London Borough of Sutton,18/10/2020,1305385,5.45 , AMAZON.CO.UK 2E81654K5,SPLIT - OXFORD PAPERBACK DICTIONARY & THESAURUS (34.63%),Peoples Services Directorate,LAC - Education,F269,
http://opendatacommunities.org/id/london-borough-council/sutton,London Borough of Sutton,08/10/2020,1305385,7.88 , AMAZON.CO.UK DJ2YU78Y5,SPLIT - GRADE 9-1 GCSE MATHS AQA REVISION QUESTION CARDS - FOUNDATION (CGP GCSE MATHS 9-1 REVISION) (13.44%),Peoples Services Directorate,LAC - Education,F269,
http://opendatacommunities.org/id/london-borough-council/sutton,London Borough of Sutton,08/10/2020,1305385,13.80 , AMAZON.CO.UK DJ2YU78Y5,"SPLIT - NEW 9-1 GCSE COMBINED SCIENCE AQA REVISION QUESTION CARDS: ALL-IN-ONE BIOLOGY, CHEMISTRY & PHYSICS (CGP GCSE COMBINED SCIENCE 9-1 REVISION) (23.54%)",Peoples Services Directorate,LAC - Education,F269,
http://opendatacommunities.org/id/london-borough-council/sutton,London Borough of Sutton,08/10/2020,1305385,5.99 , AMAZON.CO.UK DJ2YU78Y5,SPLIT - AQA GCSE 9-1 SOCIOLOGY WORKBOOK: FOR THE 2020 AUTUMN & 2021 SUMMER EXAMS (COLLINS GCSE GRADE 9-1 REVISION) (9.73%),Peoples Services Directorate,LAC - Education,F269,
http://opendatacommunities.org/id/london-borough-council/sutton,London Borough of Sutton,08/10/2020,1305385,7.34 , AMAZON.CO.UK DJ2YU78Y5,SPLIT - REVISE AQA GCSE (9-1) ENGLISH LANGUAGE REVISION CARDS: WITH FREE ONLINE REVISION GUIDE (GCSE ENGLISH LANGUAGE 2015) (14.31%),Peoples Services Directorate,LAC - Education,F269,
http://opendatacommunities.org/id/london-borough-council/sutton,London Borough of Sutton,13/10/2020,1305385,154.00 , TICKETMASTER SPORT LIM,ENRICHMENT PROGRAMME - TICKETS FOR RWC OCT 21,Peoples Services Directorate,LAC - Education,F269,
http://opendatacommunities.org/id/london-borough-council/sutton,London Borough of Sutton,11/10/2020,1305385,2.23 , AMAZON.CO.UK 435A46I95,SPLIT - HANDWRITING AGES 5-7: PREPARE FOR SCHOOL WITH EASY HOME LEARNING (COLLINS EASY LEARNING KS1) (10.02%),Peoples Services Directorate,LAC - Education,F269,
http://opendatacommunities.org/id/london-borough-council/sutton,London Borough of Sutton,30/09/2020,1305385,"1,470.00 ", TSRGD.CO.UK,LA LICENSE FOR TSRGD ONLINE,"Environment, Housing & Regeneration Directorate",IT Licences,F385,
http://opendatacommunities.org/id/london-borough-council/sutton,London Borough of Sutton,21/10/2020,1305385,66.02 , FACEBK YCHACX6AL2,SPLIT - NEIGHBOURHOOD FUNDS FACEBOOK ADS (33.01%),"Environment, Housing & Regeneration Directorate",Advertising/Publicity (non Staff),F240,
http://opendatacommunities.org/id/london-borough-council/sutton,London Borough of Sutton,12/10/2020,1305385,100.00 , EB  LIBRARIES CONNECTE,LIBRARIES CONNECTED CONFERENCE,Health and Wellbeing Directorate,Training - Course Fees,A520,
http://opendatacommunities.org/id/london-borough-council/sutton,London Borough of Sutton,03/10/2020,1305385,8.32 , SPOTIFY UK,MUSIC FOR WEDDINGS,Resources Directorate,Subscriptions - General,F450,
http://opendatacommunities.org/id/london-borough-council/sutton,London Borough of Sutton,29/09/2020,1305385,13.00 , WILKO RETAIL LIMITED,GARDEN/OFFICE SUNDRY ITEMS,Resources Directorate,Miscellaneous Expenses,F620,
http://opendatacommunities.org/id/london-borough-council/sutton,London Borough of Sutton,20/10/2020,1305385,137.00 , WWW.CIPS.ORG,MEMBERSHIP RENEWAL FOR CIPS FOR JO HURLEY,Resources Directorate,Training - Course Fees,A520,
http://opendatacommunities.org/id/london-borough-council/sutton,London Borough of Sutton,14/10/2020,1305385,249.05 , MAILCHIMP    MONTHLY,WEB HOSTING,Resources Directorate,Fees - Computer Software,F384,
http://opendatacommunities.org/id/london-borough-council/sutton,London Borough of Sutton,15/10/2020,1305385,6.85 , MAILCHIMP    MONTHLY,WEB HOSTING,Resources Directorate,Fees - Computer Software,F384,
http://opendatacommunities.org/id/london-borough-council/sutton,London Borough of Sutton,26/10/2020,1305385,1.51 , LUCIDCHART.COM/CHARGE,LUCIDCHART ANNUAL SUBSCRIPTION EXCHANGE RATE FEE,Resources Directorate,Purchase of IT Equipment,F380,
http://opendatacommunities.org/id/london-borough-council/sutton,London Borough of Sutton,24/10/2020,1305385,54.75 , LUCIDCHART.COM/CHARGE,ANNUAL LUCIDCHART SUBSCRIPTION FOR COMMITTEE SERVICES,Resources Directorate,Purchase of IT Equipment,F380,
http://opendatacommunities.org/id/london-borough-council/sutton,London Borough of Sutton,20/10/2020,1305385,16.07 , AMAZON.CO.UK OL1CK78H5,KEYBOARD,Resources Directorate,Personal Requisites,F106,
http://opendatacommunities.org/id/london-borough-council/sutton,London Borough of Sutton,25/10/2020,1305385,22.46 , AMZNMKTPLACE,PERSONAL REQUEST FOR WORKER (100%),Resources Directorate,Personal Requisites,F106,
http://opendatacommunities.org/id/london-borough-council/sutton,London Borough of Sutton,25/10/2020,1305385,22.46 , AMZNMKTPLACE,PERSONAL REQUEST FOR WORKER (100%),Resources Directorate,Personal Requisites,F106,
http://opendatacommunities.org/id/london-borough-council/sutton,London Borough of Sutton,25/10/2020,1305385,22.46 , AMZNMKTPLACE AMAZON.CO,PERSONAL REQUEST FOR WORKER (100%),Resources Directorate,Personal Requisites,F106,
http://opendatacommunities.org/id/london-borough-council/sutton,London Borough of Sutton,20/10/2020,1305385,180.00 , EVAQ8,PPE- WIPES FOR COVID,Resources Directorate,Other Reimbursements,P290,
http://opendatacommunities.org/id/london-borough-council/sutton,London Borough of Sutton,22/10/2020,1305385,22.80 , POST OFFICE COUNTER,STAMPS,Resources Directorate,Materials - General,F100,
http://opendatacommunities.org/id/london-borough-council/sutton,London Borough of Sutton,05/10/2020,1305385,78.49 , INK N TONER UK,Ink Toner for Councillor,Resources Directorate,Stationery,F220,
http://opendatacommunities.org/id/london-borough-council/sutton,London Borough of Sutton,23/10/2020,1305385,2.56 , FACEBK XQMADX6AL2,FACEBOOK ADDS,Resources Directorate,Corporate Publicity,F356,
http://opendatacommunities.org/id/london-borough-council/sutton,London Borough of Sutton,21/10/2020,1305385,11.57 , FACEBK YCHACX6AL2,SPLIT - FACEBOOK ADDS (5.79%),Resources Directorate,Corporate Publicity,F356,
http://opendatacommunities.org/id/london-borough-council/sutton,London Borough of Sutton,02/10/2020,1305385,31.67 , AMAZON.CO.UK KB4U93UC5,WIFI BOOSTER - AA,"Environment, Housing & Regeneration Directorate",Purchase of IT Equipment,F380,
http://opendatacommunities.org/id/london-borough-council/sutton,London Borough of Sutton,05/10/2020,1305385,225.95 , ARGOS LTD,CL&G,Resources Directorate,Grants,F473,
http://opendatacommunities.org/id/london-borough-council/sutton,London Borough of Sutton,28/09/2020,1305385,209.99 , ARGOS LTD,CL&G,Resources Directorate,Grants,F473,
http://opendatacommunities.org/id/london-borough-council/sutton,London Borough of Sutton,19/10/2020,1305385,(259.99), ARGOS LTD,REFUND OF 259.99 IN RESPECT OF PURCHASE MADE ON 28/9/2020,Resources Directorate,Grants,F473,
http://opendatacommunities.org/id/london-borough-council/sutton,London Borough of Sutton,16/10/2020,1305385,156.95 , ARGOS LTD,CL&G,Resources Directorate,Grants,F473,
http://opendatacommunities.org/id/london-borough-council/sutton,London Borough of Sutton,16/10/2020,1305385,274.00 , CURRYS ONLINE,CL&G,Resources Directorate,Grants,F473,
http://opendatacommunities.org/id/london-borough-council/sutton,London Borough of Sutton,16/10/2020,1305385,274.00 , CURRYS ONLINE,CL&G,Resources Directorate,Grants,F473,
http://opendatacommunities.org/id/london-borough-council/sutton,London Borough of Sutton,16/10/2020,1305385,158.00 , ARGOS LTD,CL&G,Resources Directorate,Grants,F473,
http://opendatacommunities.org/id/london-borough-council/sutton,London Borough of Sutton,15/10/2020,1305385,159.00 , CURRYS ONLINE,CL&G,Resources Directorate,Grants,F473,
http://opendatacommunities.org/id/london-borough-council/sutton,London Borough of Sutton,14/10/2020,1305385,99.99 , ARGOS LTD,CL&G,Resources Directorate,Grants,F473,
http://opendatacommunities.org/id/london-borough-council/sutton,London Borough of Sutton,13/10/2020,1305385,112.95 , ARGOS LTD,CL&G,Resources Directorate,Grants,F473,
http://opendatacommunities.org/id/london-borough-council/sutton,London Borough of Sutton,13/10/2020,1305385,311.95 , ARGOS LTD,CL&G,Resources Directorate,Grants,F473,
http://opendatacommunities.org/id/london-borough-council/sutton,London Borough of Sutton,12/10/2020,1305385,294.00 , CURRYS ONLINE,CL&G,Resources Directorate,Grants,F473,
http://opendatacommunities.org/id/london-borough-council/sutton,London Borough of Sutton,12/10/2020,1305385,379.98 , ARGOS LTD,CL&G,Resources Directorate,Grants,F473,
http://opendatacommunities.org/id/london-borough-council/sutton,London Borough of Sutton,07/10/2020,1305385,408.99 , CURRYS ONLINE,CL&G,Resources Directorate,Grants,F473,
http://opendatacommunities.org/id/london-borough-council/sutton,London Borough of Sutton,07/10/2020,1305385,(409.98), ARGOS LTD,CL&G,Resources Directorate,Grants,F473,
http://opendatacommunities.org/id/london-borough-council/sutton,London Borough of Sutton,06/10/2020,1305385,249.00 , CURRYS ONLINE,CL&G,Resources Directorate,Grants,F473,
http://opendatacommunities.org/id/london-borough-council/sutton,London Borough of Sutton,06/10/2020,1305385,225.95 , ARGOS LTD,CL&G,Resources Directorate,Grants,F473,
http://opendatacommunities.org/id/london-borough-council/sutton,London Borough of Sutton,05/10/2020,1305385,225.95 , ARGOS LTD,CL&G,Resources Directorate,Grants,F473,
http://opendatacommunities.org/id/london-borough-council/sutton,London Borough of Sutton,05/10/2020,1305385,21.00 , WWW.GOV.UK,PROBATE CERTIFICATES  X 14,Resources Directorate,General Office Expenses,F235,
http://opendatacommunities.org/id/london-borough-council/sutton,London Borough of Sutton,23/10/2020,1305385,(30.00), LBSUTTON,TEST TRANSACTION RE ISSUE ON SUTTON PALC - LAND CHARGES - SYSTEM,Resources Directorate,Miscellaneous Expenses,F620,
http://opendatacommunities.org/id/london-borough-council/sutton,London Borough of Sutton,23/10/2020,1305385,30.00 , LBSUTTON,TEST TRANSACTION RE ISSUE ON SUTTON PALC - LAND CHARGES - SYSTEM,Resources Directorate,Miscellaneous Expenses,F620,
http://opendatacommunities.org/id/london-borough-council/sutton,London Borough of Sutton,16/10/2020,1305385,(13.50), ARGOS LTD,appointeeship refund,Resources Directorate,Miscellaneous Expenses,F620,
http://opendatacommunities.org/id/london-borough-council/sutton,London Borough of Sutton,02/10/2020,1305385,13.50 , ARGOS LTD,appointeeship to be refund,Resources Directorate,Miscellaneous Expenses,F620,
http://opendatacommunities.org/id/london-borough-council/sutton,London Borough of Sutton,02/10/2020,1305385,(13.50), ARGOS LTD,appointeeship refund,Resources Directorate,Miscellaneous Expenses,F620,
http://opendatacommunities.org/id/london-borough-council/sutton,London Borough of Sutton,22/10/2020,1305385,(30.00), LBSUTTON,TEST TRANSACTION RE ISSUE ON SUTTON PALC - LAND CHARGES - SYSTEM,Resources Directorate,Miscellaneous Expenses,F620,
http://opendatacommunities.org/id/london-borough-council/sutton,London Borough of Sutton,22/10/2020,1305385,(30.00), LBSUTTON,TEST TRANSACTION RE ISSUE ON SUTTON PALC - LAND CHARGES - SYSTEM,Resources Directorate,Miscellaneous Expenses,F620,
http://opendatacommunities.org/id/london-borough-council/sutton,London Borough of Sutton,23/10/2020,1305385,30.00 , LBSUTTON,TEST TRANSACTION RE ISSUE ON SUTTON PALC - LAND CHARGES - SYSTEM,Resources Directorate,Miscellaneous Expenses,F620,
http://opendatacommunities.org/id/london-borough-council/sutton,London Borough of Sutton,23/10/2020,1305385,(30.00), LBSUTTON,TEST TRANSACTION RE ISSUE ON SUTTON PALC - LAND CHARGES - SYSTEM,Resources Directorate,Miscellaneous Expenses,F620,
http://opendatacommunities.org/id/london-borough-council/sutton,London Borough of Sutton,22/10/2020,1305385,30.00 , LBSUTTON,TEST TRANSACTION RE ISSUE ON SUTTON PALC - LAND CHARGES - SYSTEM,Resources Directorate,Miscellaneous Expenses,F620,
http://opendatacommunities.org/id/london-borough-council/sutton,London Borough of Sutton,22/10/2020,1305385,30.00 , LBSUTTON,TEST TRANSACTION RE ISSUE ON SUTTON PALC - LAND CHARGES - SYSTEM,Resources Directorate,Miscellaneous Expenses,F620,
http://opendatacommunities.org/id/london-borough-council/sutton,London Borough of Sutton,24/09/2020,1305385,"(2,425.00)", REDACTIVE,REFUND FOR PUBLIC FINANCE AWARDS 2020 - TABLE BOOKINGS,Resources Directorate,Fees - Other,F299,
http://opendatacommunities.org/id/london-borough-council/sutton,London Borough of Sutton,02/10/2020,1305385,94.84 , STORAGEMART UK A-FAE30,CLIENT ASSISTANCE OF STORAGE,Peoples Services Directorate,Client Care/Assistance,H301,
http://opendatacommunities.org/id/london-borough-council/sutton,London Borough of Sutton,02/10/2020,1305385,180.00 , LONDON CRYSTAL PALACE,ACCOMMODATION - BED AND BREAKFAST,Peoples Services Directorate,Accommodation - Bed and Breakfast,H202,
http://opendatacommunities.org/id/london-borough-council/sutton,London Borough of Sutton,05/10/2020,1305385,450.00 , SQ  EDVINAS BUCAS,CLIENT ASSISTANCE OF STORAGE,Peoples Services Directorate,Client Care/Assistance,H301,
http://opendatacommunities.org/id/london-borough-council/sutton,London Borough of Sutton,20/10/2020,1305385,42.17 , WILKO RETAIL LIMITED,BAGS FOR PPE PACK,Peoples Services Directorate,Health and Safety Equipment,F005,
http://opendatacommunities.org/id/london-borough-council/sutton,London Borough of Sutton,13/10/2020,1305385,85.75 , WILKO RETAIL LIMITED,PPE SUPPLY,Peoples Services Directorate,Miscellaneous Costs,G499,
http://opendatacommunities.org/id/london-borough-council/sutton,London Borough of Sutton,08/10/2020,1305385,145.29 , ARGOS LTD,EMERGENCY BED FOR CLIENT LL 620283,Peoples Services Directorate,Client Care/Assistance,H301,
http://opendatacommunities.org/id/london-borough-council/sutton,London Borough of Sutton,30/09/2020,1305385,75.00 , ALLIUM,FUNERAL WREATH,Peoples Services Directorate,Burials/Cremations,H303,
http://opendatacommunities.org/id/london-borough-council/sutton,London Borough of Sutton,30/09/2020,1305385,22.00 , LBSUTTON MOTO,DEATH CERT X 2,Peoples Services Directorate,Burials/Cremations,H303,
http://opendatacommunities.org/id/london-borough-council/sutton,London Borough of Sutton,29/09/2020,1305385,22.00 , LBSUTTON MOTO,DEATH CERTS X 2,Peoples Services Directorate,Burials/Cremations,H303,
http://opendatacommunities.org/id/london-borough-council/sutton,London Borough of Sutton,23/10/2020,1305385,729.17 , CITIZENM SCHIPHOL,PEOPLES DMT AWAY DAY VENUE - TOWER OF LONDON HOTEL,Peoples Services Directorate,Fees - Room Hire,F290,
http://opendatacommunities.org/id/london-borough-council/sutton,London Borough of Sutton,21/10/2020,1305385,25.85 , FACEBK YCHACX6AL2,SPLIT - TEST AND TRACE FACEBOOK ADDS (12.93%),Peoples Services Directorate,Corporate Publicity,F356,
